bitfinex/quotes_ETHUSD_20251017
["timestamp","ask_amount","ask_price","bid_price","bid_amount"]
[1760739919901,0.40532496,3870.1,3870.0,3.04167932]
[1760739921826,0.45036711,3870.1,3870.0,3.04167932]
[1760739923228,0.04504215,3870.1,3870.0,2.58397932]
[1760739925032,0.04504215,3870.1,3870.0,3.04167932]
[1760739927422,0.17384215,3870.1,3870.0,3.04167932]
[1760739929819,0.04504215,3870.1,3870.0,3.04167932]
[1760739930535,0.04504215,3870.1,3870.0,2.58397932]
[1760739930730,0.17384215,3870.1,3870.0,2.58397932]
[1760739932131,0.58115102,3870.1,3870.0,2.58397932]
[1760739933021,0.68015102,3870.1,3870.0,2.58397932]
[1760739933244,0.27484215,3870.1,3870.0,2.58397932]
[1760739934719,0.17584215,3870.1,3870.0,2.58397932]
[1760739935136,0.17584215,3870.1,3870.0,3.02777932]
[1760739935337,0.04704215,3870.1,3870.0,3.02777932]
[1760739936016,0.17584215,3870.1,3870.0,3.02777932]
[1760739938547,0.04704215,3870.1,3870.0,3.02777932]
[1760739941557,0.04704215,3870.1,3870.0,3.18241911]
[1760739941762,0.04704215,3870.1,3870.0,3.28537932]
[1760739942064,1e-08,3870.2,3870.1,2.58391256]
[1760739942358,1e-08,3870.2,3870.1,3.26221256]
[1760739942564,1e-08,3870.2,3870.1,2.81841256]
[1760739942756,1e-08,3870.2,3870.1,3.26221256]
[1760739944671,1e-08,3870.2,3870.1,3.28805168]
[1760739945836,1e-08,3870.2,3870.1,5.01605168]
[1760739946045,1e-08,3870.2,3870.1,4.99021256]
[1760739948738,1e-08,3870.2,3870.1,3.26221256]
[1760739949769,1e-08,3870.2,3870.1,2.58391256]
[1760739951773,1e-08,3870.2,3870.1,2.68753346]
[1760739953147,1e-08,3870.2,3870.1,3.15717258]
[1760739953346,1e-08,3870.2,3870.1,3.26013346]
[1760739954177,1e-08,3870.2,3870.1,2.81633346]
[1760739954369,1e-08,3870.2,3870.1,3.26013346]
[1760739955657,1e-08,3870.2,3870.1,3.28597258]
[1760739957571,1e-08,3870.6,3870.5,2.58364552]
[1760739957987,1e-08,3870.6,3870.5,2.71244552]
[1760739958287,1e-08,3870.6,3870.5,2.81605273]
[1760739958969,0.002,3871.3,3871.2,2.58317834]
[1760739959187,0.002,3871.3,3871.2,2.81897834]
[1760739959473,0.002,3871.3,3871.2,2.68676757]
[1760739959673,0.101,3871.3,3871.2,2.68676757]
[1760739960244,0.002,3871.3,3871.2,2.68676757]
[1760739961072,0.101,3871.3,3871.2,2.68676757]
[1760739961961,0.14602402,3871.3,3871.2,2.68676757]
[1760739965692,0.14602402,3871.3,3871.2,2.58317834]
[1760739969008,0.04702402,3871.3,3871.2,2.58317834]
[1760739969184,0.04702402,3871.3,3871.2,3.05727834]
[1760739969380,0.002,3871.3,3871.2,3.86004549]
[1760739970499,0.002,3871.3,3871.2,3.98884549]
[1760739970686,0.002,3871.3,3871.2,3.96301371]
[1760739971706,0.002,3871.3,3871.2,3.48891371]
[1760739972995,0.002,3871.3,3871.2,3.98884549]
[1760739974081,0.0450192,3871.8,3871.7,2.58284474]
[1760739974281,0.0450192,3871.8,3871.7,2.71164474]
[1760739974477,0.0450192,3871.8,3871.7,3.18574474]
[1760739974901,0.0450192,3871.8,3871.7,3.41454474]
[1760739975513,0.1288,3872.4,3872.0,2.58264462]
[1760739975705,0.1288,3872.4,3872.0,2.60847106]
[1760739975893,0.1288,3872.4,3872.0,3.08257106]
[1760739976506,0.1,3873.1,3872.0,3.08257106]
[1760739976812,0.101,3872.9,3872.0,3.08257106]
[1760739977317,0.101,3872.9,3872.0,3.05674462]
[1760739979707,0.50605638,3873.1,3872.0,3.05674462]
[1760739980990,0.40505638,3873.1,3872.0,3.05674462]
[1760739981323,0.04501018,3872.6,3872.0,3.05674462]
[1760739982197,0.40505638,3873.1,3872.9,2.58204446]
[1760739982410,0.101,3873.6,3873.5,2.5816445]
[1760739982790,0.14600036,3873.6,3873.5,2.5816445]
[1760739983236,0.04500036,3873.6,3873.5,2.5816445]
[1760739984218,0.14690036,3873.6,3873.5,2.5816445]
[1760739984814,0.04500036,3873.6,3873.5,2.5816445]
[1760739990014,0.04700036,3873.6,3873.5,2.7104445]
[1760739991840,0.002,3873.6,3873.5,2.7104445]
[1760739992454,0.002,3873.6,3873.5,3.19276094]
[1760739992656,0.002,3873.6,3873.5,3.1669445]
[1760739993105,0.002,3874.0,3873.9,2.58137793]
[1760739993340,5.41893093,3876.2,3874.4,2.5810448]
[1760739993644,0.2966,3875.5,3874.4,2.5810448]
[1760739993845,0.2966,3875.5,3874.4,3.4424516]
[1760739994266,0.04497745,3875.2,3874.4,3.4424516]
[1760739997163,0.04497745,3875.2,3874.4,2.9859516]
[1760739997357,0.2063,3874.9,3874.4,2.9859516]
[1760739997559,0.1041,3874.5,3874.4,2.9859516]
[1760739997795,0.1041,3874.5,3874.4,2.5810448]
[1760739999094,0.002,3874.5,3874.4,2.5810448]
[1760739999864,0.1041,3874.5,3874.4,2.5810448]
[1760740003200,0.04698962,3874.5,3874.4,2.5810448]
[1760740003509,0.002,3874.5,3874.4,2.5810448]
[1760740005307,0.04698868,3874.5,3874.4,2.5810448]
[1760740006009,0.1041,3874.5,3874.4,2.5810448]
[1760740008517,0.1041,3874.5,3874.4,2.5820448]
[1760740008712,0.002,3874.5,3874.4,2.5820448]
[1760740011321,0.04698737,3874.5,3874.4,2.5820448]
[1760740013294,1e-08,3876.6,3875.2,2.58051197]
[1760740013531,1e-08,3876.2,3876.1,2.57991279]
[1760740013689,1e-08,3876.2,3876.1,2.80951279]
[1760740013892,1e-08,3876.2,3876.1,3.26601279]
[1760740014093,1e-08,3876.2,3876.1,3.29181191]
[1760740014306,1e-08,3876.2,3876.1,3.36946592]
[1760740014927,1e-08,3876.2,3876.1,3.39526504]
[1760740015295,1e-08,3876.2,3876.1,3.36946592]
[1760740015496,1e-08,3876.2,3876.1,3.39526504]
[1760740016226,1e-08,3876.2,3876.1,3.36946592]
[1760740019852,1e-08,3876.2,3876.1,2.68336592]
[1760740021907,0.09900001,3876.2,3876.1,2.68336592]
[1760740026754,0.09900001,3876.2,3876.1,2.57991279]
[1760740027076,0.17576648,3876.8,3876.7,2.5795135]
[1760740027358,0.04496732,3876.5,3875.9,2.75378206]
[1760740027561,0.04496732,3876.5,3876.4,2.57971313]
[1760740027767,0.17576648,3876.8,3876.7,2.5795135]
[1760740029241,0.17676648,3876.8,3876.7,2.5795135]
[1760740029524,0.17676648,3876.8,3876.6,2.57956109]
[1760740029726,0.17576648,3876.8,3876.7,2.5795135]
[1760740030351,0.17676648,3876.8,3876.7,2.5795135]
[1760740030662,0.22173362,3876.8,3876.7,2.5795135]
[1760740032989,0.22173362,3876.8,3875.8,0.1288]
[1760740033187,1.728,3876.1,3875.1,0.7974]
[1760740033394,1.728,3876.1,3876.0,2.57997936]
[1760740033757,11.63817,3875.9,3875.8,2.58005666]
[1760740033958,7.24293,3875.9,3875.8,2.58005666]
[1760740034291,1.8568,3875.8,3875.5,2.58026548]
[1760740034471,0.0809,3875.7,3875.5,2.58026548]
[1760740034673,0.0809,3875.7,3875.6,2.58024563]
[1760740034868,1.728,3875.8,3875.6,2.58024563]
[1760740035188,0.04497754,3875.7,3875.6,2.58024563]
[1760740035391,0.12587754,3875.7,3875.6,2.58024563]
[1760740035599,0.12587754,3875.7,3875.4,2.58036885]
[1760740035600,0.1288,3875.6,3875.4,2.58036885]
[1760740035758,0.1288,3875.6,3874.7,3.79605878]
[1760740035759,0.1288,3875.4,3874.6,0.1288]
[1760740035958,1.83463222,3875.5,3875.1,2.58052828]
[1760740035959,1.8568,3875.2,3875.1,2.58052828]
[1760740036193,0.1288,3874.9,3874.8,2.58077836]
[1760740037459,0.1288,3874.9,3874.8,3.01977836]
[1760740037767,0.1288,3874.9,3874.8,2.58077836]
[1760740039199,0.17377919,3874.9,3874.8,2.58077836]
[1760740039404,0.1288,3874.9,3874.8,2.58077836]
[1760740040004,0.1288,3874.9,3874.8,3.01977836]
[1760740040301,0.002,3877.1,3875.6,2.58022215]
[1760740040302,0.0809,3875.7,3875.6,2.58022215]
[1760740040675,1.8568,3875.6,3875.3,2.58037932]
[1760740040875,9.676583,3875.8,3875.6,2.58024563]
[1760740041073,3.795028,3875.8,3875.7,2.58017906]
[1760740041809,0.04497756,3875.8,3875.7,3.01917906]
[1760740043181,0.04497756,3875.8,3875.7,2.58017906]
[1760740044111,0.04497756,3875.8,3875.7,3.01917906]
[1760740044882,0.04497756,3875.8,3875.7,2.58017906]
[1760740046189,0.04497756,3875.8,3875.7,3.01917906]
[1760740046396,0.04497756,3875.8,3875.7,2.58017906]
[1760740047586,0.04497756,3875.8,3875.6,0.001]
[1760740047793,1.77297756,3875.8,3875.7,2.58017906]
[1760740050821,0.04497756,3875.8,3875.7,2.58017906]
[1760740052002,0.04497756,3875.8,3875.7,3.03957906]
[1760740052503,0.04497756,3875.8,3875.7,2.58017906]
[1760740055100,0.002,3877.6,3875.7,2.58017906]
[1760740055101,0.002,3876.8,3875.7,0.4594]
[1760740055301,1.728,3876.2,3875.7,2.58017906]
[1760740055608,1.728,3876.2,3876.1,2.57991279]
[1760740055609,1.827,3876.2,3876.1,2.57991279]
[1760740055939,4.272617,3876.2,3876.1,2.57991279]
[1760740056143,1.728,3876.2,3876.1,2.57991279]
[1760740056504,1.77497102,3876.8,3876.5,2.57958375]
[1760740057137,1.728,3876.6,3876.5,2.57958375]
[1760740057306,1.77497102,3876.8,3876.1,0.4594]
[1760740057501,4.299015,3876.7,3876.6,2.57951786]
[1760740058232,4.454074,3876.7,3876.6,2.57951786]
[1760740059428,1.728,3876.6,3876.4,2.57966286]
[1760740059728,1.728,3876.5,3876.4,2.57971313]
[1760740063039,18.37697322,3876.5,3875.8,0.001]
[1760740063205,8.52783246,3875.9,3875.8,2.58106689]
[1760740063410,6.52681846,3875.9,3875.8,2.58106689]
[1760740063630,1.728,3875.9,3875.8,2.58106689]
[1760740063813,1.77297627,3875.9,3875.8,2.58106689]
[1760740065752,6.57179473,3875.9,3875.8,0.001]
[1760740066042,1.77297627,3875.9,3875.8,2.58111249]
[1760740066536,10.74422073,3875.9,3875.8,0.001]
[1760740066710,9.95022073,3875.9,3875.8,2.58111249]
[1760740067540,11.92712073,3875.9,3875.8,2.58111249]
[1760740069240,10.92909373,3875.9,3875.8,2.58111249]
[1760740069436,8.93350073,3875.9,3875.8,2.58111249]
[1760740069616,9.91753973,3875.9,3875.8,2.58111249]
[1760740069826,6.57179473,3875.9,3875.8,2.58111249]
[1760740070219,1.77297627,3875.9,3875.8,2.58111249]
[1760740074712,1.77297627,3875.9,3875.8,3.04051249]
[1760740076566,1.90177627,3875.9,3875.8,3.04051249]
[1760740076769,1.77297627,3875.9,3875.8,3.04051249]
[1760740078865,0.04497627,3875.9,3875.8,3.04051249]
[1760740081060,0.04697627,3875.9,3875.8,3.04051249]
[1760740087903,0.04697627,3875.9,3875.8,3.06631361]
[1760740088562,0.04697627,3875.9,3875.8,3.04051249]
[1760740101633,0.04697627,3875.9,3875.8,3.02261249]
[1760740101823,0.04697627,3875.9,3875.8,3.42929623]
[1760740102211,0.04697627,3875.9,3875.8,2.98779623]
[1760740102533,0.002,3875.9,3875.8,3.55809623]
[1760740103816,0.002,3875.9,3875.8,3.58389735]
[1760740104619,0.002,3875.9,3875.8,3.55809623]
[1760740108071,0.002,3875.9,3875.8,3.11659623]
[1760740108429,0.002,3875.9,3875.8,3.55809623]
[1760740109796,0.002,3875.9,3875.8,3.58389735]
[1760740111125,0.002,3876.6,3875.8,3.58389735]
[1760740111436,0.002,3876.6,3876.5,2.57964658]
[1760740111637,0.002,3876.6,3876.5,2.60544304]
[1760740112156,0.002,3876.6,3876.5,3.06174304]
[1760740112529,0.002,3876.6,3876.5,3.16519617]
[1760740114485,0.04696459,3876.6,3876.5,3.16519617]
[1760740115571,0.04696459,3876.6,3876.5,2.70889617]
[1760740115774,0.002,3876.6,3876.5,2.70889617]
[1760740117690,0.002,3876.6,3876.5,3.16519617]
[1760740119887,0.002,3876.6,3876.5,3.29399617]
[1760740120864,1e-08,3876.7,3876.6,2.57958004]
[1760740121070,1e-08,3876.7,3876.6,3.03588004]
[1760740121487,1e-08,3876.7,3876.6,3.13931953]
[1760740122208,0.45158549,3877.4,3877.0,2.5793139]
[1760740122407,0.40662418,3877.4,3877.0,2.5793139]
[1760740122593,0.40662418,3877.4,3877.0,2.7081139]
[1760740122994,0.40662418,3877.4,3877.0,3.11473808]
[1760740123194,0.002,3877.4,3877.0,3.11473808]
[1760740123588,0.002,3877.4,3877.0,3.57103808]
[1760740125479,0.002,3877.4,3877.0,3.11473808]
[1760740126909,0.002,3877.4,3877.0,3.58623808]
[1760740127077,0.002,3877.4,3877.0,3.61203121]
[1760740127280,0.002,3877.4,3877.3,2.57911433]
[1760740127500,0.002,3877.4,3877.3,2.60490547]
[1760740127812,0.002,3877.4,3877.3,3.20520547]
[1760740128006,0.002,3877.4,3877.3,3.30863158]
[1760740129820,0.002,3877.4,3877.3,5.03663158]
[1760740131726,0.002,3877.4,3877.3,3.30863158]
[1760740133195,1e-08,3877.7,3877.6,2.57891479]
[1760740133396,0.099,3879.0,3878.9,2.57805047]
[1760740133397,0.1288,3879.0,3878.9,2.57805047]
[1760740133606,0.2278,3879.0,3878.9,2.57805047]
[1760740134213,0.14395095,3879.0,3878.9,2.57805047]
[1760740137359,0.04495095,3879.0,3878.9,2.57805047]
[1760740137652,0.1278,3879.1,3879.0,2.57798401]
[1760740138149,0.2268,3879.1,3879.0,2.57798401]
[1760740138348,0.2268,3879.1,3879.0,3.11115233]
[1760740138549,10.18883517,3879.1,3879.0,0.53316832]
[1760740138757,1.8568,3879.0,3878.7,2.5781771]
[1760740139053,0.099,3878.9,3878.7,2.5781771]
[1760740139553,0.1288,3878.7,3878.6,2.57823493]
[1760740139718,4.79412717,3878.8,3878.6,2.57823493]
[1760740139918,0.099,3878.7,3878.6,2.57823493]
[1760740140658,0.14395004,3878.7,3878.6,2.57823493]
[1760740141545,1.87195004,3878.7,3878.6,2.57823493]
[1760740146172,2.27638338,3878.7,3878.6,2.57823493]
[1760740147573,2.27638338,3878.7,3878.1,0.77561166]
[1760740147574,7.428672,3878.4,3878.1,0.77561166]
[1760740147877,6.52212717,3878.2,3878.1,2.57858229]
[1760740148077,6.62112717,3878.2,3878.1,2.57858229]
[1760740151365,6.66608077,3878.2,3878.1,2.57858229]
[1760740152468,6.66608077,3878.2,3878.0,2.57862123]
[1760740152668,1.75373222,3878.1,3877.6,0.77569589]
[1760740152879,4.83908077,3878.2,3877.6,2.57991479]
[1760740152880,1.728,3877.7,3877.6,2.57991479]
[1760740153080,1.8568,3877.7,3877.6,2.57991479]
[1760740153480,1.9017562,3877.7,3877.6,2.57991479]
[1760740156563,0.1737562,3877.7,3877.6,2.57991479]
[1760740158168,1.9017562,3877.7,3877.6,2.57991479]
[1760740158369,0.1737562,3877.7,3877.6,2.57991479]
[1760740171914,0.1757562,3877.7,3877.6,2.57991479]
[1760740174495,0.002,3877.7,3877.6,2.57991479]
[1760740174699,0.04695541,3877.7,3877.6,2.57991479]
[1760740175224,0.002,3877.7,3877.6,2.57991479]
[1760740176214,0.002,3877.7,3877.6,3.01011479]
[1760740179226,0.002,3877.7,3877.6,2.57991479]
[1760740181860,0.04695548,3877.7,3877.6,3.01011479]
[1760740184354,0.17575548,3877.7,3877.6,3.01011479]
[1760740186857,0.17575548,3877.7,3877.6,2.57991479]
[1760740194672,0.17575548,3877.7,3877.6,3.01011479]
[1760740202385,0.17575548,3877.7,3877.6,2.57991479]
[1760740202588,0.17575548,3877.7,3877.6,3.07260393]
[1760740202791,0.002,3878.1,3878.0,2.57864878]
[1760740203388,0.002,3878.1,3878.0,3.05224878]
[1760740205193,0.002,3878.1,3878.0,3.53864878]
[1760740205398,0.101,3878.1,3878.0,3.53864878]
[1760740205573,0.101,3878.1,3878.0,0.96]
[1760740205761,0.101,3878.1,3878.0,3.53864878]
[1760740205964,4.710456,3878.1,3878.0,3.53864878]
[1760740206163,4.710456,3878.1,3878.0,0.96]
[1760740206464,8.927778,3878.1,3878.0,0.96]
[1760740206698,9.33228349,3878.1,3878.0,0.96]
[1760740206903,9.3772409,3878.1,3878.0,0.96]
[1760740207283,9.7734979,3878.1,3878.0,3.53864878]
[1760740207593,8.9734979,3878.1,3878.0,3.53864878]
[1760740207981,4.6207449,3878.1,3878.0,3.53864878]
[1760740208295,2.2784629,3878.1,3878.0,3.53864878]
[1760740210065,4.9687039,3878.1,3878.0,3.53864878]
[1760740210294,4.9687039,3878.1,3878.0,0.96]
[1760740210871,28.6304789,3878.1,3878.0,0.96]
[1760740211068,20.2450399,3878.1,3878.0,0.96]
[1760740211270,19.2978869,3878.1,3878.0,0.96]
[1760740211895,21.6918449,3878.1,3878.0,0.96]
[1760740212403,21.6918449,3878.1,3877.6,0.001]
[1760740212404,1.728,3877.8,3877.6,0.001]
[1760740212610,30.70377215,3877.7,3877.6,0.001]
[1760740212793,30.80387215,3877.7,3877.6,0.001]
[1760740212998,31.71993915,3877.7,3877.6,0.001]
[1760740213301,31.7649044,3877.7,3877.6,0.001]
[1760740213710,31.4422044,3877.7,3877.6,0.001]
[1760740213878,31.2307044,3877.7,3877.6,0.001]
[1760740214077,27.30320513,3877.7,3877.6,0.001]
[1760740214377,24.10326313,3877.7,3877.6,0.001]
[1760740214707,20.78884313,3877.7,3877.6,0.001]
[1760740215078,23.83269713,3877.7,3877.6,0.001]
[1760740216077,31.78461413,3877.7,3877.6,0.001]
[1760740216411,1.728,3877.6,3877.3,0.001]
[1760740216577,31.728,3877.4,3877.3,0.001]
[1760740216779,23.99384061,3877.4,3877.3,0.001]
[1760740216982,25.62219761,3877.4,3877.3,0.001]
[1760740217182,24.75336561,3877.4,3877.3,0.001]
[1760740217975,26.39207761,3877.4,3877.3,0.001]
[1760740218996,28.32370061,3877.4,3877.3,0.001]
[1760740220000,31.38270561,3877.4,3877.3,0.001]
[1760740220199,26.52870061,3877.4,3877.3,0.001]
[1760740220702,26.29230961,3877.4,3877.3,0.001]
[1760740221127,26.53437261,3877.4,3877.3,0.001]
[1760740222032,28.83897661,3877.4,3877.3,0.001]
[1760740222402,24.209154,3877.4,3877.3,0.001]
[1760740222636,21.968493,3877.4,3877.3,0.001]
[1760740223134,9.174515,3877.4,3877.3,0.001]
[1760740223301,4.174775,3877.4,3877.3,0.001]
[1760740223735,6.20684413,3877.7,3877.3,3.05370301]
[1760740223950,6.20684413,3877.7,3877.4,0.4736]
[1760740224236,1.728,3877.6,3877.4,0.4736]
[1760740224638,1.728,3877.6,3877.3,0.001]
[1760740224639,0.1288,3877.4,3877.3,0.001]
[1760740224935,0.1288,3877.4,3877.3,2.58011433]
[1760740225399,0.1288,3877.4,3877.3,3.05371433]
[1760740225801,1.728,3877.6,3877.5,2.5789813]
[1760740226137,1.728,3877.6,3877.5,3.0525813]
[1760740228841,1.73,3877.6,3877.5,3.0525813]
[1760740229135,1.73,3877.6,3877.5,0.4736]
[1760740229352,1.75573222,3877.6,3877.3,0.001]
[1760740229854,1.73,3877.6,3877.3,0.001]
[1760740230082,0.23523222,3877.5,3877.3,0.001]
[1760740230347,15.483354,3877.4,3877.3,0.001]
[1760740230635,15.582354,3877.4,3877.3,0.001]
[1760740231204,10.976944,3877.4,3877.3,0.001]
[1760740231407,7.869256,3877.4,3877.3,0.001]
[1760740231621,7.488846,3877.4,3877.3,0.001]
[1760740232141,13.024505,3877.4,3877.3,0.001]
[1760740232739,13.41284161,3877.4,3877.3,0.001]
[1760740233207,29.33226061,3877.4,3877.3,0.001]
[1760740233521,28.57263761,3877.4,3877.3,0.001]
[1760740234128,1.728,3877.1,3876.9,0.001]
[1760740234328,24.048117,3877.0,3876.9,0.001]
[1760740234540,24.147117,3877.0,3876.9,0.001]
[1760740234708,24.19208951,3877.0,3876.9,0.001]
[1760740235210,14.91133551,3877.0,3876.9,0.001]
[1760740235544,9.20277351,3877.0,3876.9,0.001]
[1760740235954,9.20277351,3877.0,3874.8,0.10348739]
[1760740235955,0.1288,3876.9,3874.8,0.10348739]
[1760740236137,1.76642607,3870.5,3869.6,0.1486]
[1760740236456,9.330876,3869.7,3869.6,0.1486]
[1760740236813,9.330876,3869.7,3868.0,2.60302191]
[1760740236814,9.330876,3869.6,3868.3,2.5851149]
[1760740237042,1.38022523,3868.5,3868.2,2.58518173]
[1760740237245,1.8402912,3869.1,3868.1,2.58524857]
[1760740237246,1.38022523,3868.6,3868.5,2.58498125]
[1760740237415,11.26007598,3868.6,3868.5,2.58498125]
[1760740237627,9.87985075,3868.6,3868.5,2.58498125]
[1760740237828,9.87985075,3868.6,3868.0,0.01771403]
[1760740238066,10.70302875,3868.1,3868.0,2.60302943]
[1760740238266,9.87985075,3868.1,3867.9,0.1486]
[1760740238426,0.40546835,3869.2,3867.9,2.73398224]
[1760740238427,9.87985075,3868.0,3867.9,2.73398224]
[1760740238625,9.87985075,3868.0,3867.9,0.1486]
[1760740239141,9.87985075,3868.0,3867.2,2.58580804]
[1760740239341,9.330876,3867.4,3867.3,2.58578336]
[1760740239545,9.87985075,3867.4,3867.3,2.58578336]
[1760740239740,12.14862099,3867.4,3867.3,2.58578336]
[1760740239945,9.87985075,3867.4,3867.3,2.58578336]
[1760740241238,9.10292242,3867.4,3867.3,2.58578336]
[1760740241836,9.09590266,3867.4,3867.3,2.58578336]
[1760740242538,0.54195499,3867.4,3867.3,2.58578336]
[1760740243163,2.25447813,3867.7,3867.6,2.58558279]
[1760740243367,8.140348,3868.2,3868.1,2.58524857]
[1760740243575,8.140348,3868.3,3867.9,2.58534589]
[1760740243870,11.29222653,3868.1,3868.0,2.5853154]
[1760740244266,8.140348,3868.1,3867.9,2.37386212]
[1760740244572,8.140348,3868.1,3868.0,2.5853154]
[1760740244957,8.140348,3868.3,3868.2,2.58518173]
[1760740246170,8.140348,3868.3,3868.2,2.50424173]
[1760740246867,8.140348,3868.3,3868.1,0.1288]
[1760740247564,8.140348,3868.3,3868.2,2.58518173]
[1760740249080,8.140348,3868.3,3868.1,0.1298]
[1760740249081,8.611448,3868.3,3868.1,0.001]
[1760740249249,8.140348,3868.3,3868.1,0.001]
[1760740249452,3.45405077,3868.2,3868.1,0.001]
[1760740249685,17.70685077,3868.2,3868.1,0.001]
[1760740249855,12.892558,3868.2,3868.1,0.001]
[1760740250272,12.93762376,3868.2,3868.1,0.001]
[1760740250780,18.07681576,3868.2,3868.1,0.001]
[1760740250968,18.48241508,3868.2,3868.1,0.001]
[1760740251551,20.76069008,3868.2,3868.1,0.001]
[1760740251780,20.22655708,3868.2,3868.1,0.001]
[1760740251966,8.59101308,3868.2,3868.1,0.001]
[1760740252167,10.31901308,3868.2,3868.1,0.001]
[1760740252382,8.54594732,3868.2,3868.1,0.001]
[1760740252586,8.54594732,3868.2,3868.1,2.58624857]
[1760740252892,8.18540979,3868.2,3868.1,2.58624857]
[1760740256091,8.18540979,3868.2,3868.1,2.54982557]
[1760740256654,13.625271,3868.7,3868.6,2.58491443]
[1760740256858,8.140348,3868.8,3868.7,2.58484762]
[1760740257058,9.868348,3868.8,3868.7,2.54842462]
[1760740257281,10.339448,3868.8,3868.7,2.22064917]
[1760740258056,9.868348,3868.7,3868.6,2.58490222]
[1760740258293,8.140348,3868.6,3867.9,2.58536854]
[1760740258869,9.868348,3868.6,3868.5,2.58492296]
[1760740259091,10.338048,3868.6,3868.5,2.58492296]
[1760740260070,9.91340445,3868.6,3868.5,2.58492296]
[1760740260782,9.868348,3868.5,3868.1,0.1288]
[1760740261092,9.997148,3868.4,3868.3,2.58506217]
[1760740261265,10.466848,3868.4,3868.3,2.58506217]
[1760740261473,10.466848,3868.4,3867.8,0.001]
[1760740261791,8.140348,3868.3,3868.2,2.58511988]
[1760740262091,8.610048,3868.3,3868.2,2.58511988]
[1760740265372,8.610048,3868.3,3867.8,0.001]
[1760740265591,8.578748,3868.2,3868.1,2.58524857]
[1760740265991,8.140348,3868.3,3868.2,2.58518173]
[1760740266186,8.140348,3868.3,3868.2,2.55240103]
[1760740266582,8.62581269,3868.3,3868.2,3.12240103]
[1760740266979,10.35381269,3868.3,3868.2,0.57]
[1760740267191,10.35381269,3868.3,3868.2,0.5372193]
[1760740268099,10.35381269,3868.3,3868.2,3.12240103]
[1760740268284,8.62581269,3868.3,3868.2,3.12240103]
[1760740268693,10.35381269,3868.3,3868.2,3.12240103]
[1760740269098,9.91541269,3868.3,3868.2,3.12240103]
[1760740269874,10.35381269,3868.3,3868.2,3.12240103]
[1760740270284,13.65541869,3868.3,3868.2,3.12240103]
[1760740270485,12.40198669,3868.3,3868.2,3.12240103]
[1760740270706,10.35381269,3868.3,3868.2,3.12240103]
[1760740272087,10.35381269,3868.3,3868.2,3.09240103]
[1760740272475,10.35381269,3868.3,3868.2,0.5072193]
[1760740272675,10.35381269,3868.3,3868.2,3.09240103]
[1760740272992,12.69113369,3868.3,3868.2,0.5072193]
[1760740275076,23.94889969,3868.3,3868.2,0.5072193]
[1760740275290,19.91463569,3868.3,3868.2,0.5072193]
[1760740276185,20.42576469,3868.3,3868.2,0.5072193]
[1760740276534,17.11307269,3868.3,3868.2,0.5072193]
[1760740276704,17.51862497,3868.3,3868.2,0.5072193]
[1760740277083,23.99562697,3868.3,3868.2,0.5072193]
[1760740277419,13.37153997,3868.3,3868.2,0.5072193]
[1760740278202,15.41265797,3868.3,3868.2,0.4622193]
[1760740278594,15.41265797,3868.3,3868.2,0.4122193]
[1760740279324,14.96090497,3868.3,3868.2,0.4122193]
[1760740280191,20.58288097,3868.3,3868.2,0.4122193]
[1760740281229,24.10841997,3868.3,3868.2,0.4122193]
[1760740281590,22.82591997,3868.3,3868.2,0.4122193]
[1760740282018,15.94030497,3868.3,3868.2,0.4122193]
[1760740282229,16.70957097,3868.3,3868.2,0.4122193]
[1760740282430,15.16911397,3868.3,3868.2,0.4122193]
[1760740282626,12.92641797,3868.3,3868.2,0.4122193]
[1760740283226,24.46796197,3868.3,3868.2,0.4122193]
[1760740283421,18.24553497,3868.3,3868.2,0.4122193]
[1760740284225,36.33956397,3868.3,3868.2,0.4122193]
[1760740284404,33.06144497,3868.3,3868.2,0.4122193]
[1760740284827,30.89774997,3868.3,3868.2,0.4122193]
[1760740285130,26.96737497,3868.3,3868.2,0.4122193]
[1760740285333,28.58996797,3868.3,3868.2,0.4122193]
[1760740285826,21.60133697,3868.3,3868.2,0.4122193]
[1760740286124,18.92133697,3868.3,3868.2,0.4122193]
[1760740286295,15.31483997,3868.3,3868.2,0.4122193]
[1760740286691,15.75323997,3868.3,3868.2,0.4122193]
[1760740287425,20.50747497,3868.3,3868.2,0.4122193]
[1760740287792,19.60784497,3868.3,3868.2,0.4122193]
[1760740288326,18.46271097,3868.3,3868.2,0.4122193]
[1760740288938,17.53451197,3868.3,3868.2,0.4122193]
[1760740289097,14.73665797,3868.3,3868.2,0.4122193]
[1760740289294,17.11804297,3868.3,3868.2,0.4122193]
[1760740289493,16.26404297,3868.3,3868.2,0.4122193]
[1760740290361,24.78939397,3868.3,3868.2,0.4122193]
[1760740290734,24.17903897,3868.3,3868.2,0.4122193]
[1760740291252,22.66582797,3868.3,3868.2,0.4122193]
[1760740291454,14.76146297,3868.3,3868.2,0.4122193]
[1760740291623,14.29736297,3868.3,3868.2,0.4122193]
[1760740291825,12.56936297,3868.3,3868.2,0.4122193]
[1760740292434,14.99123797,3868.3,3868.2,0.4122193]
[1760740292938,13.44167597,3868.3,3868.2,0.4122193]
[1760740293324,10.32096497,3868.3,3868.2,0.4122193]
[1760740293822,12.56114197,3868.3,3868.2,0.4122193]
[1760740294256,13.69308897,3868.3,3868.2,2.99740103]
[1760740294460,12.79408897,3868.3,3868.2,2.99740103]
[1760740294622,12.79408897,3868.3,3868.2,0.4122193]
[1760740295258,12.79408897,3868.3,3868.2,2.99740103]
[1760740295464,14.61912597,3868.3,3868.2,0.4122193]
[1760740295753,13.72012597,3868.3,3868.2,0.4122193]
[1760740296167,8.59296497,3868.3,3868.2,2.99740103]
[1760740296328,8.31621269,3868.3,3868.2,2.99740103]
[1760740296530,8.271148,3868.3,3868.2,2.99740103]
[1760740298542,9.999148,3868.3,3868.2,2.99740103]
[1760740298948,8.271148,3868.3,3868.2,2.99740103]
[1760740299466,8.142348,3868.3,3868.2,2.99740103]
[1760740301441,8.142348,3868.3,3868.2,3.12620103]
[1760740302573,0.04705953,3868.7,3868.6,2.58491443]
[1760740303272,0.04705953,3868.7,3868.6,2.71371443]
[1760740303859,0.002,3868.7,3868.6,2.71371443]
[1760740307755,0.002,3868.7,3868.6,4.4548026]
[1760740309665,0.002,3868.7,3868.6,2.71371443]
[1760740310897,0.002,3868.7,3868.6,2.7268026]
[1760740311059,0.002,3868.7,3868.6,2.71371443]